fUST/lending_fUST_20241012
["ID","MTS","AMOUNT","RATE_DAILY","PERIOD"]
[340149357,1728682246517,-423.81688255,0.00065,120]
[340149358,1728682246529,-2352.99999998,0.00065,120]
[340149360,1728683194104,-159.535284,0.00041674,2]
[340149361,1728683194131,-400.0,0.00044658,2]
[340149362,1728683194154,-400.0,0.00049517,2]
[340149363,1728683194180,-457.0,0.00051165,120]
[340149364,1728683194204,-400.0,0.00051165,15]
[340149365,1728683194227,-291.0,0.00051166,2]
[340149366,1728683194249,-1841.24524934,0.00051166,2]
[340149367,1728683233141,-349.71685375,0.00051166,2]
[340149368,1728683237092,-3073.8176869,0.00051166,2]
[340149369,1728683241139,-15431.41363783,0.00051166,2]
[340149374,1728683366101,-171.75,0.0005,2]
[340149375,1728683366124,-4203.80657218,0.00051166,2]
[340149376,1728683366145,-22218.98663839,0.000519,120]
[340149377,1728683366167,-1000.0,0.00052,120]
[340149378,1728683366188,-500.0,0.00052733,10]
[340149379,1728683366209,-500.0,0.00053533,10]
[340149380,1728683366232,-500.0,0.00053689,10]
[340149381,1728683366255,-400.0,0.00054376,2]
[340149382,1728683366275,-500.0,0.00054794,120]
[340149383,1728683366295,-500.94527331,0.00054794,120]
[340149384,1728683366316,-500.0,0.00054794,120]
[340149385,1728683366336,-250.0,0.00054794,120]
[340149386,1728683366357,-500.0,0.00054794,120]
[340149387,1728683366377,-500.0,0.00054794,120]
[340149388,1728683366398,-500.0,0.00054794,120]
[340149389,1728683366419,-500.0,0.00054794,120]
[340149390,1728683366439,-262.4265211,0.00054794,120]
[340149391,1728683366460,-500.0,0.00054794,2]
[340149392,1728683366480,-500.0,0.00054794,2]
[340149393,1728683366501,-500.0,0.00054794,2]
[340149394,1728683366521,-557.22639201,0.00054794,120]
[340149395,1728683366542,-500.0,0.00054794,120]
[340149396,1728683366564,-529.78603565,0.00054794,120]
[340149397,1728683366585,-500.0,0.00054794,120]
[340149398,1728683366606,-500.0,0.00054794,120]
[340149399,1728683366629,-500.0,0.00054794,120]
[340149400,1728683366651,-619.17370486,0.00054794,120]
[340149401,1728683366672,-500.0,0.00054794,120]
[340149402,1728683366694,-500.0,0.00054794,120]
[340149403,1728683366719,-500.0,0.00054794,120]
[340149404,1728683366741,-500.0,0.00054794,2]
[340149405,1728683366762,-500.0,0.00054794,120]
[340149406,1728683366783,-316.32847785,0.00054794,2]
[340149407,1728683366811,-500.0,0.00054794,120]
[340149408,1728683366832,-535.18,0.00054794,120]
[340149409,1728683366853,-500.0,0.00054794,120]
[340149410,1728683366874,-500.0,0.00054794,120]
[340149411,1728683366895,-500.0,0.00054794,30]
[340149412,1728683366917,-500.0,0.00054794,120]
[340149413,1728683366938,-500.0,0.00054794,120]
[340149414,1728683366959,-500.0,0.00054794,120]
[340149415,1728683366980,-500.0,0.00054794,120]
[340149416,1728683367002,-500.0,0.00054794,120]
[340149417,1728683367022,-500.0,0.00054794,120]
[340149418,1728683367043,-500.0,0.00054794,120]
[340149419,1728683367064,-500.0,0.00054794,120]
[340149420,1728683367084,-500.0,0.00054794,120]
[340149421,1728683367106,-153.0,0.00054821,120]
[340149422,1728683367126,-150.96,0.00055068,2]
[340149423,1728683367147,-501.51634767,0.00055738,2]
[340149424,1728683367168,-22218.98663836,0.00056313,120]
[340149425,1728683367188,-500.0,0.00057167,7]
[340149426,1728683367208,-300.0,0.00057167,120]
[340149427,1728683367229,-500.0,0.00057167,120]
[340149428,1728683367250,-500.0,0.00057167,120]
[340149429,1728683367273,-603.17950864,0.00057167,120]
[340149430,1728683367294,-528.65536785,0.00057167,120]
[340149431,1728683367317,-500.0,0.00057167,120]
[340149432,1728683367339,-500.0,0.00058407,120]
[340149433,1728683367363,-500.0,0.00058407,120]
[340149434,1728683367387,-500.0,0.00058407,120]
[340149435,1728683367412,-500.0,0.00058407,120]
[340149436,1728683367433,-500.0,0.00058407,120]
[340149437,1728683367456,-500.0,0.00058407,120]
[340149438,1728683367479,-531.7543553,0.00058407,120]
[340149439,1728683367501,-573.48,0.00058407,120]
[340149440,1728683367527,-500.0,0.00058407,120]
[340149441,1728683367551,-302.11958062,0.00058407,120]
[340149442,1728683367577,-400.0,0.00059236,2]
[340149443,1728683367603,-222.0,0.000595,120]
[340149444,1728683367730,-300.0,0.0006,120]
[340149445,1728683367753,-211.68262434,0.00060615,2]
[340149446,1728683367774,-21420.41394553,0.00060725,120]
[340149447,1728683367805,-798.57269283,0.00060725,120]
[340149448,1728683367829,-154.37351867,0.00061127,120]
[340149449,1728683375708,1910.90617573,0.00060714,120]
[340149479,1728683432477,-229.0,0.00064,120]
[340149480,1728683432487,-81.71298003,0.00064094,2]
[340149481,1728683434927,155.0,0.0003201,2]
[340149489,1728683438768,-418.28701997,0.00064094,2]
[340149490,1728683438780,-400.0,0.00064095,2]
[340149491,1728683438793,-2939.30115913,0.0006424,28]
[340149492,1728683438804,-211.68262434,0.00064284,2]
[340149493,1728683438816,-336.67848819,0.00064284,2]
[340149494,1728683438826,-408.4,0.0006433,30]
[340149495,1728683438836,-53990.4840903,0.0006434,10]
[340149496,1728683438846,-8839.9839731,0.0006434,10]
[340149497,1728683438857,-488363.4020546,0.0006435,2]
[340149498,1728683438868,-229.0,0.00064384,120]
[340149499,1728683438880,-500.0,0.00064676,2]
[340149500,1728683438890,-1000.0,0.0006487,120]
[340149501,1728683438901,-2937.2270907,0.0006489,120]
[340149502,1728683438912,-150.0,0.000649,120]
[340149503,1728683438923,-510.0,0.000649,60]
[340149504,1728683438936,-3698.97010594,0.0006496,11]
[340149505,1728683439825,155.0,0.0003201,2]
[340149506,1728683440641,-1700.07830309,0.0006496,11]
[340149507,1728683440653,-883.99839731,0.0006496,11]
[340149508,1728683440664,-13982.81510283,0.0006497,63]
[340149509,1728683440675,-5399.04840903,0.0006497,11]
[340149510,1728683440685,-883.99839731,0.0006497,11]
[340149511,1728683440697,-16197.1452271,0.0006498,11]
[340149512,1728683440708,-2651.99519193,0.0006498,11]
[340149513,1728683440719,-5399.04840903,0.0006499,11]
[340149514,1728683440731,-883.99839731,0.0006499,11]
[340149515,1728683440741,-15753.90511106,0.0006499,84]
[340149516,1728683440755,-1000.0,0.0006499,120]
[340149517,1728683440765,-151.0,0.0006499,120]
[340149518,1728683440776,-151.0,0.0006499,120]
[340149519,1728683440787,-21596.1936361,0.0006499,11]
[340149520,1728683440799,-3535.99358924,0.0006499,11]
[340149521,1728683440810,-28676.91627743,0.00065,120]
[340149528,1728683443825,-438.75339259,0.00065,120]
[340149530,1728683446855,-1714.60151532,0.00065,120]
[340149531,1728683449230,162.946412,0.00043797,2]
[340149532,1728683456371,5625.79044478,0.0003201,2]
[340149533,1728683545189,500.38185113,0.000261,30]
[340149537,1728684433129,-500.0,0.0003701,2]
[340149538,1728684433154,-2585.3239298,0.0004165,2]
[340149539,1728684433178,-239.0,0.00044457,30]
[340149540,1728684433205,-300.0,0.00044457,5]
[340149541,1728684433231,-2571.8885143,0.00044458,28]
[340149542,1728684433255,-177.82374797,0.00044558,30]
[340149543,1728684433280,-400.0,0.00044658,2]
[340149544,1728684433305,-400.0,0.00049517,2]
[340149545,1728684433328,-150.0,0.0005,10]
[340149546,1728684433350,-152.7,0.0005,10]
[340149547,1728684433374,-164.61165,0.00050079,2]
[340149548,1728684433396,-159.535284,0.00050353,2]
[340149549,1728684433418,-28310.16139101,0.00050806,120]
[340149550,1728684433448,-577.43326433,0.00050806,120]
[340149551,1728684433474,-500.0,0.00051478,7]
[340149552,1728684433499,-400.0,0.00054376,2]
[340149553,1728684433520,-500.0,0.00054794,120]
[340149554,1728684433543,-500.0,0.00054794,120]
[340149555,1728684433566,-512.58,0.00054794,120]
[340149556,1728684433589,-500.0,0.00054794,120]
[340149557,1728684433611,-342.93723152,0.00054794,120]
[340149558,1728684433634,-560.25,0.00054794,120]
[340149559,1728684433657,-500.0,0.00054794,120]
[340149560,1728684433681,-500.0,0.00054794,120]
[340149561,1728684433703,-500.0,0.00054794,120]
[340149562,1728684433723,-500.0,0.00054794,120]
[340149563,1728684433745,-500.0,0.00054794,120]
[340149564,1728684433766,-500.0,0.00054794,30]
[340149565,1728684433790,-500.0,0.00054794,120]
[340149566,1728684433813,-500.0,0.00054794,2]
[340149567,1728684433838,-377.36546701,0.00054794,120]
[340149568,1728684454126,-500.0,0.00051478,10]
[340149569,1728684454149,-122.63453299,0.00054794,120]
[340149570,1728684454172,-27.26767757,0.00054794,120]
[340149571,1728684546137,-4203.8065722,0.00053686,2]
[340149572,1728684546160,-472.73232243,0.00054794,120]
[340149573,1728684546180,-500.0,0.00054794,2]
[340149574,1728684546200,-546.3,0.00054794,120]
[340149575,1728684546221,-500.0,0.00054794,120]
[340149576,1728684546241,-500.0,0.00054794,120]
[340149577,1728684546261,-500.0,0.00054794,120]
[340149578,1728684546282,-155.07,0.00055068,30]
[340149579,1728684552056,27553.87305197,0.00054694,120]
[340149580,1728684556964,27553.87305195,0.00058408,120]
[340149581,1728684560158,-400.0,0.00059236,2]
[340149582,1728684560184,-154.37351867,0.00061127,120]
[340149583,1728684561977,27553.87305195,0.00062122,120]
[340149586,1728684576054,74421.91956458,0.0005979,120]
[340149587,1728684618181,500.0,0.000376,5]
[340149616,1728684631823,-2270.45681591,0.00059491,28]
[340149618,1728684631836,-462.24380356,0.00059789,2]
[340149620,1728684631849,-37.75619644,0.00059789,2]
[340149622,1728684631860,-784.13981657,0.0005979,120]
[340149624,1728684631874,-536.04086264,0.0005979,120]
[340149641,1728684638054,-449.46135705,0.0005979,120]
[340149642,1728684638068,-41798.25091568,0.0005979,120]
[340149643,1728684638078,-445.04526972,0.00060086,30]
[340149644,1728684638087,-200.0,0.00064,120]
[340149645,1728684638097,-400.0,0.00064095,2]
[340149646,1728684638107,-200.0,0.00064384,120]
[340149647,1728684638117,-198.3522807,0.00064613,120]
[340149648,1728684638128,-200.0,0.00064613,120]
[340149649,1728684638138,-6107.89541274,0.00064649,2]
[340149650,1728684638150,-2250.40244996,0.0006488,28]
[340149651,1728684638161,-200.0,0.00064887,120]
[340149652,1728684638170,-1000.0,0.0006489,120]
[340149653,1728684638181,-150.0,0.000649,120]
[340149654,1728684638192,-510.0,0.000649,60]
[340149655,1728684638202,-2937.2270907,0.000649,120]
[340149656,1728684638212,-303.01063938,0.000649,2]
[340149657,1728684638222,-285.0,0.000649,2]
[340149658,1728684638234,-2699.52420452,0.00064979,11]
[340149659,1728684638249,-265.1995192,0.00064979,11]
[340149660,1728684638259,-500.0,0.0006498,120]
[340149661,1728684638269,-8098.57261356,0.0006498,11]
[340149662,1728684638279,-795.5985576,0.0006498,11]
[340149663,1728684638291,-1000.0,0.0006499,120]
[340149664,1728684638303,-43192.3872723,0.0006499,11]
[340149665,1728684638313,-4243.1923072,0.0006499,11]
[340149666,1728684638324,-150.01,0.00064999,120]
[340149667,1728684638336,-1710.37180609,0.00064999,120]
[340149668,1728684638346,-13982.81510283,0.00065,63]
[340149669,1728684638358,-15753.90511106,0.00065,84]
[340149670,1728684638369,-1000.0,0.00065,120]
[340149671,1728684638380,-9035.88489727,0.00065,120]
[340149674,1728684640389,-4012.33827968,0.00065,120]
[340149675,1728684640401,-119213.13444877,0.00065,120]
[340149700,1728684642848,-5018.9254973,0.00065,120]
[340149707,1728684645374,209.9542747,0.00054795,120]
[340149710,1728684646974,209.9542747,0.00054795,120]
[340149711,1728684647268,150.0,0.00047,90]
[340149712,1728684647602,150.0,0.00046849,90]
[340149713,1728684647988,150.0,0.00048904,90]
[340149714,1728684649073,150.0,0.00058196,120]
[340149715,1728684649541,150.0,0.00054773,120]
[340149716,1728684650533,153.0,0.00051349,120]
[340149717,1728684676245,209.4898726,0.00054795,120]
[340149718,1728684708846,159.30885,0.00050565,2]
[340149719,1728684709071,159.30885,0.00051883,2]
[340149720,1728684709282,159.30885,0.000532,2]
[340149721,1728684714540,500.0,0.000376,5]
[340149722,1728684839208,156.8938966,0.00032,60]
[340149724,1728684941434,196.163954,0.00026986,2]
[340149730,1728685626167,-342.44700329,0.00038,2]
[340149731,1728685626190,-174.260103,0.00038791,2]
[340149732,1728685626215,-174.260103,0.00038985,2]
[340149733,1728685626238,-201.612004,0.00041809,2]
[340149734,1728685626260,-299.8457639,0.00042148,2]
[340149735,1728685626284,-283.21837697,0.00042868,2]
[340149736,1728685633183,-2000.47679953,0.00042868,2]
[340149737,1728685633204,-181.75338535,0.00043056,2]
[340149738,1728685633227,-300.0,0.00043155,30]
[340149739,1728685633249,-550.0,0.00043155,5]
[340149740,1728685633274,-2207.0247381,0.00043158,2]
[340149741,1728685633299,-400.0,0.00044658,2]
[340149742,1728685633324,-348.097381,0.00044658,2]
[340149743,1728685633350,-263.0,0.00045728,2]
[340149744,1728685633374,-176.47274516,0.00045728,2]
[340149745,1728685633398,-2636.49099381,0.00045782,28]
[340149746,1728685633425,-21936.58898763,0.00045828,2]
[340149748,1728685704415,4654.0,0.00033,2]
[340149749,1728685717712,1062.9421494,0.00021,60]
[340149750,1728685717746,44307.50930894,0.00021,60]
[340149752,1728685721423,211.68275279,0.0002799,2]
[340149753,1728685722678,-2179.6643692,0.00033,2]
[340149756,1728685750307,-165.871014,0.00032485,2]
[340149757,1728685750331,-330.4626899,0.00033588,2]
[340149758,1728685750354,-400.0,0.00034999,2]
[340149759,1728685750375,-400.0,0.00034999,2]
[340149760,1728685750398,-10445.58938422,0.00035,2]
[340149761,1728685750420,-244.05946273,0.00035,2]
[340149762,1728685750444,-16070.4033835,0.00035988,2]
[340149763,1728685750469,-560.0,0.00037527,2]
[340149764,1728685750491,-560.0,0.00038499,30]
[340149765,1728685750512,-20617.17427204,0.0004,120]
[340149766,1728685750535,-783.0,0.00040237,5]
[340149767,1728685750556,-5030.61484463,0.000418,120]
[340149768,1728685750578,-783.0,0.00042349,30]
[340149769,1728685750602,-1097.0,0.00043143,5]
[340149770,1728685750622,-9996.78393071,0.00045,120]
[340149771,1728685752785,11548.06506623,0.000372,103]
[340149772,1728685754515,191.895529,0.00043786,2]
[340149773,1728685754769,191.895529,0.00043859,2]
[340149774,1728685755004,191.895529,0.00043932,2]
[340149775,1728685755228,191.895529,0.00044005,2]
[340149776,1728685757141,-1211.03128397,0.00045599,14]
[340149777,1728685757166,-999.90001,0.00045827,7]
[340149778,1728685757189,-2963.41101237,0.00045828,2]
[340149779,1728685757211,-194.92806587,0.00045828,60]
[340149780,1728685757312,-1202.72659915,0.00046055,14]
[340149781,1728685757352,-424.0,0.00046259,5]
[340149782,1728685757375,-637.0,0.00046584,30]
[340149783,1728685757400,-172.0,0.00047,90]
[340149784,1728685757422,-150.0,0.00047742,120]
[340149785,1728685757443,-1191.13446419,0.00048398,8]
[340149786,1728685757468,-172.0,0.00048904,90]
[340149787,1728685757490,-400.0,0.00049517,2]
[340149788,1728685757512,-348.097381,0.00049517,2]
[340149789,1728685757533,-3783.38084826,0.0004988,30]
[340149790,1728685757556,-500.0,0.00051225,10]
[340149791,1728685757581,-172.0,0.00051349,120]
[340149792,1728685757603,-176.47274514,0.00051902,2]
[340149793,1728685757628,-349.03,0.0005199,30]
[340149794,1728685757653,-290.85,0.0005199,30]
[340149795,1728685757678,-242.38,0.0005199,30]
[340149796,1728685757701,-1000.0,0.00052,120]
[340149797,1728685757724,-24328.30111146,0.00052,7]
[340149798,1728685757749,-158.084,0.00054125,101]
[340149799,1728685757771,-400.0,0.00054376,2]
[340149800,1728685757795,-348.097381,0.00054376,2]
[340149801,1728685757817,-4253.8544672,0.00054692,28]
[340149802,1728685757839,-300.0,0.000547,30]
[340149803,1728685757860,-418.83,0.00054783,30]
[340149804,1728685757882,-368.7,0.00054784,30]
[340149805,1728685757904,-8931.85,0.00054784,10]
[340149806,1728685757928,-500.0,0.00054793,120]
[340149807,1728685757953,-500.0,0.00054793,120]
[340149808,1728685757977,-500.0,0.00054793,120]
[340149809,1728685758000,-500.0,0.00054793,120]
[340149810,1728685758023,-500.0,0.00054793,120]
[340149811,1728685758045,-500.0,0.00054793,120]
[340149812,1728685758067,-500.0,0.00054793,120]
[340149813,1728685758091,-164.26488738,0.00054793,120]
[340149814,1728685758113,-500.0,0.00054793,120]
[340149815,1728685758136,-505.6861763,0.00054793,120]
[340149816,1728685758160,-500.0,0.00054793,120]
[340149817,1728685758183,-244.28754335,0.00054793,120]
[340149818,1728685758205,-500.0,0.00054793,120]
[340149819,1728685758226,-500.0,0.00054793,120]
[340149820,1728685758247,-500.0,0.00054793,120]
[340149821,1728685758271,-500.0,0.00054793,120]
[340149822,1728685758294,-500.0,0.00054793,120]
[340149823,1728685758315,-500.0,0.00054793,120]
[340149824,1728685758337,-500.0,0.00054793,120]
[340149825,1728685758360,-500.0,0.00054793,120]
[340149826,1728685758380,-500.0,0.00054793,120]
[340149827,1728685758402,-500.0,0.00054793,120]
[340149828,1728685758424,-500.0,0.00054793,120]
[340149829,1728685758446,-500.0,0.00054793,120]
[340149830,1728685758471,-500.0,0.00054793,120]
[340149831,1728685758493,-500.0,0.00054793,120]
[340149832,1728685758515,-500.0,0.00054793,120]
[340149833,1728685758535,-500.0,0.00054793,120]
[340149834,1728685758557,-500.0,0.00054793,120]
[340149835,1728685758581,-500.0,0.00054793,120]
[340149836,1728685758602,-542.98848547,0.00054793,120]
[340149837,1728685758624,-500.0,0.00054793,120]
[340149838,1728685758645,-500.0,0.00054793,120]
[340149839,1728685758666,-500.0,0.00054793,120]
[340149840,1728685758687,-500.0,0.00054793,120]
[340149841,1728685758707,-500.0,0.00054793,120]
[340149842,1728685758731,-500.0,0.00054793,120]
[340149843,1728685758752,-500.0,0.00054793,120]
[340149844,1728685758773,-500.0,0.00054793,120]
[340149845,1728685758794,-500.0,0.00054793,120]
[340149846,1728685758816,-500.0,0.00054793,120]
[340149847,1728685758843,-500.0,0.00054793,120]
[340149848,1728685758868,-500.0,0.00054793,120]
[340149849,1728685758892,-500.0,0.00054793,120]
[340149850,1728685758915,-500.0,0.00054793,120]
[340149851,1728685758938,-500.0,0.00054793,120]
[340149852,1728685758960,-500.0,0.00054793,120]
[340149853,1728685758983,-325.82739598,0.00054793,120]
[340149854,1728685759005,-500.0,0.00054793,120]
[340149855,1728685759026,-500.0,0.00054793,120]
[340149856,1728685759047,-500.0,0.00054793,120]
[340149857,1728685759068,-500.0,0.00054793,120]
[340149858,1728685759090,-260.921816,0.00054793,120]
[340149859,1728685759113,-500.0,0.00054793,120]
[340149860,1728685759135,-500.0,0.00054793,120]
[340149861,1728685759156,-500.0,0.00054793,120]
[340149862,1728685759177,-500.0,0.00054793,120]
[340149863,1728685759199,-500.0,0.00054793,120]
[340149864,1728685759220,-500.0,0.00054793,120]
[340149865,1728685759242,-500.0,0.00054793,120]
[340149866,1728685759264,-500.0,0.00054793,120]
[340149867,1728685759284,-500.0,0.00054793,120]
[340149868,1728685759306,-500.0,0.00054793,120]
[340149869,1728685759327,-500.0,0.00054793,120]
[340149870,1728685759348,-500.0,0.00054793,120]
[340149871,1728685759370,-200.0,0.00054793,120]
[340149872,1728685759391,-500.0,0.00054793,120]
[340149873,1728685759412,-500.0,0.00054793,120]
[340149874,1728685759433,-500.0,0.00054793,120]
[340149875,1728685759455,-500.0,0.00054793,120]
[340149876,1728685759477,-500.0,0.00054793,120]
[340149877,1728685759497,-500.0,0.00054793,120]
[340149878,1728685759517,-413.69692501,0.00054793,120]
[340149879,1728685759537,-500.0,0.00054793,120]
[340149880,1728685759558,-200.19653636,0.00054793,120]
[340149881,1728685759579,-500.0,0.00054793,120]
[340149882,1728685759600,-500.0,0.00054793,120]
[340149883,1728685759631,-500.0,0.00054793,120]
[340149884,1728685759652,-500.0,0.00054793,120]
[340149885,1728685759672,-500.0,0.00054793,120]
[340149886,1728685759692,-500.0,0.00054793,120]
[340149887,1728685759713,-500.0,0.00054793,120]
[340149888,1728685759734,-500.0,0.00054793,120]
[340149889,1728685759758,-500.0,0.00054793,120]
[340149890,1728685759780,-500.0,0.00054793,120]
[340149891,1728685759801,-500.0,0.00054793,120]
[340149892,1728685759822,-500.0,0.00054793,120]
[340149893,1728685759843,-500.0,0.00054793,120]
[340149894,1728685759866,-500.0,0.00054793,120]
[340149895,1728685759891,-500.0,0.00054793,120]
[340149896,1728685759914,-500.0,0.00054793,120]
[340149897,1728685760012,-500.0,0.00054793,120]
[340149898,1728685760038,-500.0,0.00054793,120]
[340149899,1728685760059,-500.0,0.00054793,120]
[340149900,1728685760084,-500.0,0.00054793,120]
[340149901,1728685760108,-500.0,0.00054793,120]
[340149902,1728685760133,-500.0,0.00054793,120]
[340149903,1728685760156,-500.0,0.00054793,120]
[340149904,1728685760179,-500.0,0.00054793,120]
[340149905,1728685760203,-285.53159776,0.00054793,120]
[340149906,1728685760224,-499.99999999,0.00054793,120]
[340149907,1728685760247,-313.97188618,0.00054793,120]
[340149908,1728685760270,-500.0,0.00054794,2]
[340149909,1728685760294,-500.0,0.00054794,120]
[340149910,1728685760316,-500.0,0.00054794,120]
[340149911,1728685760339,-500.0,0.00054794,120]
[340149912,1728685760362,-500.0,0.00054794,120]
[340149913,1728685760384,-529.78603565,0.00054794,120]
[340149914,1728685760405,-500.0,0.00054794,120]
[340149915,1728685760430,-619.17370486,0.00054794,120]
[340149916,1728685760451,-500.0,0.00054794,120]
[340149917,1728685760478,-262.4265211,0.00054794,120]
[340149918,1728685760500,-500.0,0.00054794,2]
[340149919,1728685760522,-500.0,0.00054794,2]
[340149920,1728685760543,-500.0,0.00054794,120]
[340149921,1728685760567,-500.0,0.00054794,120]
[340149922,1728685760591,-631.06,0.00054794,120]
[340149923,1728685760615,-500.0,0.00054794,120]
[340149924,1728685760636,-500.0,0.00054794,120]
[340149925,1728685760658,-500.0,0.00054794,120]
[340149926,1728685760682,-500.0,0.00054794,120]
[340149927,1728685760704,-500.0,0.00054794,120]
[340149928,1728685760726,-500.0,0.00054794,120]
[340149929,1728685760750,-500.0,0.00054794,120]
[340149930,1728685760772,-500.0,0.00054794,120]
[340149931,1728685760794,-600.2,0.00054794,120]
[340149932,1728685760816,-500.0,0.00054794,120]
[340149933,1728685760837,-500.0,0.00054794,120]
[340149934,1728685760859,-500.0,0.00054794,120]
[340149935,1728685760881,-518.53,0.00054794,120]
[340149936,1728685760903,-594.46,0.00054794,120]
[340149937,1728685760926,-500.0,0.00054794,120]
[340149938,1728685760949,-500.0,0.00054794,120]
[340149939,1728685760976,-587.48,0.00054794,120]
[340149940,1728685760998,-500.0,0.00054794,120]
[340149941,1728685761024,-500.0,0.00054794,120]
[340149942,1728685761046,-500.0,0.00054794,120]
[340149943,1728685761068,-500.0,0.00054794,120]
[340149944,1728685761092,-500.0,0.00054794,120]
[340149945,1728685761118,-500.0,0.00054794,120]
[340149946,1728685761141,-500.0,0.00054794,120]
[340149947,1728685761163,-500.0,0.00054794,120]
[340149948,1728685761186,-500.0,0.00054794,120]
[340149949,1728685761208,-500.0,0.00054794,120]
[340149950,1728685761228,-500.0,0.00054794,120]
[340149951,1728685761250,-500.0,0.00054794,120]
[340149952,1728685761272,-500.0,0.00054794,120]
[340149953,1728685761292,-500.0,0.00054794,120]
[340149954,1728685761316,-500.0,0.00054794,120]
[340149955,1728685761339,-500.0,0.00054794,120]
[340149956,1728685761363,-500.0,0.00054794,120]
[340149957,1728685761387,-500.0,0.00054794,120]
[340149958,1728685761408,-500.0,0.00054794,120]
[340149959,1728685761431,-500.0,0.00054794,120]
[340149960,1728685761453,-500.0,0.00054794,120]
[340149961,1728685761477,-500.0,0.00054794,120]
[340149962,1728685761500,-500.0,0.00054794,120]
[340149963,1728685761521,-500.0,0.00054794,120]
[340149964,1728685761544,-500.0,0.00054794,120]
[340149965,1728685761566,-158.8,0.00054794,120]
[340149966,1728685761590,-500.0,0.00054794,120]
[340149967,1728685761613,-500.0,0.00054794,120]
[340149968,1728685761635,-198.3522807,0.00054794,120]
[340149969,1728685761658,-500.0,0.00054794,120]
[340149970,1728685761682,-500.0,0.00054794,120]
[340149971,1728685761706,-309.779119,0.00054795,120]
[340149972,1728685761734,-209.9542747,0.00054795,120]
[340149973,1728685761756,-209.9542747,0.00054795,120]
[340149974,1728685761779,-208.7692685,0.00054795,120]
[340149975,1728685761801,-244.99,0.000548,2]
[340149976,1728685761824,-500.0,0.00054856,2]
[340149977,1728685761846,-500.0,0.00054856,15]
[340149978,1728685761867,-500.0,0.00054856,15]
[340149979,1728685761888,-500.0,0.00054856,15]
[340149980,1728685761909,-500.75339827,0.00054856,10]
[340149981,1728685761930,-500.0,0.0005486,15]
[340149982,1728685761951,-500.0,0.0005486,7]
[340149983,1728685761973,-189.73,0.00055068,120]
[340149984,1728685761995,-500.0,0.00055068,120]
[340149985,1728685762018,-208.45,0.00055068,120]
[340149986,1728685762039,-153.0,0.00055217,120]
[340149987,1728685762062,-153.0,0.00055217,120]
[340149988,1728685762083,-153.0,0.00055217,120]
[340149989,1728685762104,-500.0,0.00055342,120]
[340149990,1728685762127,-1000.0,0.00055342,120]
[340149991,1728685762148,-347.08,0.00055586,30]
[340149992,1728685762170,-502.6,0.00055586,30]
[340149993,1728685762191,-243.2288028,0.0005559,7]
[340149994,1728685762213,-32213.2739873,0.00055596,8]
[340149995,1728685762236,-6331.45016821,0.00055596,8]
[340149996,1728685762261,-416.5,0.00055596,30]
[340149997,1728685762286,-500.0,0.00055616,120]
[340149998,1728685762309,-607.05,0.0005588,30]
[340149999,1728685762332,-500.0,0.0005589,120]
[340150000,1728685762357,-1500.0,0.0005589,120]
[340150001,1728685762380,-599.75,0.00056094,30]